[Event "Torneo Nuevo Centro. Jornada 8"]
[Site "Chess.com"]
[Date "2020.08.07"]
[Round "9"]
[White "Yuste Valenzuela, Alejandro"]
[Black "Pardo Ruiz, Carlos"]
[Result "1-0"]
[WhiteElo "1872"]
[BlackElo "1692"]
[TimeControl "180+2"]
[EndTime "12:12:52 PDT"]
[Termination "Victoria de alejandrito290 por jaque mate"]

1. e4 {[%clk 0:03:01.9]} 1... Nf6 {[%clk 0:02:59.7]} 2. e5 {[%clk 0:03:02.7]}
2... Nd5 {[%clk 0:03:00.1]} 3. c4 {[%clk 0:03:04.1]} 3... Nb6 {[%clk 0:03:00.8]}
4. d4 {[%clk 0:03:05.3]} 4... d6 {[%clk 0:03:01.8]} 5. exd6 {[%clk 0:03:07.2]}
5... exd6 {[%clk 0:03:03.3]} 6. Nf3 {[%clk 0:03:07]} 6... Bg4 {[%clk 0:03:04.1]}
7. h3 {[%clk 0:03:06.4]} 7... Bxf3 {[%clk 0:03:04.3]} 8. Qxf3 {[%clk 0:03:08.3]}
8... Nc6 {[%clk 0:03:05.2]} 9. Be3 {[%clk 0:03:06.9]} 9... Be7 {[%clk
0:03:05.7]} 10. Nc3 {[%clk 0:03:07.2]} 10... O-O {[%clk 0:03:04.1]} 11. Bd3
{[%clk 0:03:02.5]} 11... Bf6 {[%clk 0:03:02.5]} 12. O-O {[%clk 0:02:59.6]} 12...
g6 {[%clk 0:02:58]} 13. Ne4 {[%clk 0:02:28.9]} 13... Bg7 {[%clk 0:02:53.7]} 14.
d5 {[%clk 0:01:52.6]} 14... Ne5 {[%clk 0:02:52.4]} 15. Qe2 {[%clk 0:01:53.5]}
15... Re8 {[%clk 0:02:49.4]} 16. Qc2 {[%clk 0:01:41.5]} 16... Nxd3 {[%clk
0:02:46.6]} 17. Qxd3 {[%clk 0:01:43.4]} 17... Bxb2 {[%clk 0:02:46.1]} 18. Bg5
{[%clk 0:01:13.7]} 18... Qc8 {[%clk 0:02:36.5]} 19. Nf6+ {[%clk 0:01:09.9]}
19... Bxf6 {[%clk 0:02:35.8]} 20. Bxf6 {[%clk 0:01:11.8]} 20... Nd7 {[%clk
0:02:34.8]} 21. Bb2 {[%clk 0:01:07.9]} 21... Ne5 {[%clk 0:02:34.2]} 22. Qd4
{[%clk 0:01:01.3]} 22... f6 {[%clk 0:02:28.1]} 23. f4 {[%clk 0:00:59.1]} 23...
Nd7 {[%clk 0:02:25.1]} 24. f5 {[%clk 0:00:55.4]} 24... g5 {[%clk 0:02:20.1]} 25.
h4 {[%clk 0:00:55.1]} 25... h6 {[%clk 0:02:18.8]} 26. hxg5 {[%clk 0:00:56.2]}
26... hxg5 {[%clk 0:02:18]} 27. Rf3 {[%clk 0:00:53.3]} 27... Ne5 {[%clk
0:02:16.8]} 28. Rh3 {[%clk 0:00:53.5]} 28... Qxf5 {[%clk 0:02:13.9]} 29. Rf1
{[%clk 0:00:50.3]} 29... Qg6 {[%clk 0:02:12.9]} 30. Qf2 {[%clk 0:00:28.7]} 30...
Kg7 {[%clk 0:01:56.7]} 31. Bxe5 {[%clk 0:00:22.2]} 31... Rxe5 {[%clk 0:01:56.4]}
32. Rf3 {[%clk 0:00:23]} 32... Rf8 {[%clk 0:01:48.5]} 33. Qb2 {[%clk 0:00:17]}
33... b6 {[%clk 0:01:47.8]} 34. a4 {[%clk 0:00:17.4]} 34... Re4 {[%clk
0:01:41.9]} 35. Qc2 {[%clk 0:00:13]} 35... Rg4 {[%clk 0:01:36.6]} 36. Qxg6+
{[%clk 0:00:13.3]} 36... Kxg6 {[%clk 0:01:38.5]} 37. Rc3 {[%clk 0:00:12.2]}
37... Re8 {[%clk 0:01:38.9]} 38. Rcf3 {[%clk 0:00:12.4]} 38... Re2 {[%clk
0:01:34.7]} 39. Rxf6+ {[%clk 0:00:12.7]} 39... Kh5 {[%clk 0:01:35.7]} 40. R6f2
{[%clk 0:00:10.4]} 40... Ree4 {[%clk 0:01:32.1]} 41. Rf7 {[%clk 0:00:07.5]}
41... Rxc4 {[%clk 0:01:32.6]} 42. Rh7+ {[%clk 0:00:05.2]} 42... Kg6 {[%clk
0:01:32.7]} 43. Rhf7 {[%clk 0:00:07.1]} 43... Rc2 {[%clk 0:01:31.9]} 44. R1f6+
{[%clk 0:00:07.9]} 44... Kh5 {[%clk 0:01:31.8]} 45. Rh7# {[%clk 0:00:09.3]} 1

[Event "Torneo Nuevo Centro. Jornada 8"]
[Site "Chess.com"]
[Date "2020.08.07"]
[Round "9"]
[White "Gimenez Saiz, Jose Raul"]
[Black "Gómez Alonso, Óscar"]
[Result "1-0"]
[WhiteElo "1756"]
[BlackElo "1813"]
[TimeControl "180+2"]
[EndTime "12:13:18 PDT"]
[Termination "Victoria de rango013 por jaque mate"]

1. d4 {[%clk 0:03:00.2]} 1... Nf6 {[%clk 0:03:00.6]} 2. e3 {[%clk 0:02:58.9]}
2... d5 {[%clk 0:03:00]} 3. Bd3 {[%clk 0:02:59.5]} 3... c6 {[%clk 0:03:01.1]} 4.
Nd2 {[%clk 0:02:57.1]} 4... g6 {[%clk 0:02:57.8]} 5. f4 {[%clk 0:02:56.3]} 5...
Bg7 {[%clk 0:02:58.4]} 6. Ngf3 {[%clk 0:02:57.5]} 6... Bg4 {[%clk 0:02:58]} 7.
O-O {[%clk 0:02:56.4]} 7... Nbd7 {[%clk 0:02:53.7]} 8. h3 {[%clk 0:02:55.4]}
8... Bxf3 {[%clk 0:02:50.5]} 9. Qxf3 {[%clk 0:02:55.5]} 9... e6 {[%clk
0:02:49.7]} 10. c3 {[%clk 0:02:54.6]} 10... Qe7 {[%clk 0:02:45.7]} 11. e4 {[%clk
0:02:55]} 11... dxe4 {[%clk 0:02:46.2]} 12. Nxe4 {[%clk 0:02:55.5]} 12... Nxe4
{[%clk 0:02:47.1]} 13. Bxe4 {[%clk 0:02:55.8]} 13... Nf6 {[%clk 0:02:48]} 14.
Bxc6+ {[%clk 0:02:51]} 14... Kf8 {[%clk 0:01:45.9]} 15. Bxb7 {[%clk 0:02:46.6]}
15... Rb8 {[%clk 0:01:46.7]} 16. Be4 {[%clk 0:02:42]} 16... Nxe4 {[%clk
0:01:37.5]} 17. Qxe4 {[%clk 0:02:43.9]} 17... Bf6 {[%clk 0:01:38.5]} 18. g4
{[%clk 0:02:42.5]} 18... Qb7 {[%clk 0:01:35.5]} 19. Qxb7 {[%clk 0:02:41.9]}
19... Rxb7 {[%clk 0:01:36.9]} 20. b3 {[%clk 0:02:42]} 20... Kg7 {[%clk
0:01:37.4]} 21. Bb2 {[%clk 0:02:40.5]} 21... Rd8 {[%clk 0:01:37.1]} 22. Kg2
{[%clk 0:02:27.7]} 22... h6 {[%clk 0:01:37.4]} 23. Rad1 {[%clk 0:02:24.7]} 23...
Rbd7 {[%clk 0:01:37.3]} 24. Kg3 {[%clk 0:02:21.3]} 24... Kh7 {[%clk 0:01:36.7]}
25. h4 {[%clk 0:02:22.4]} 25... Be7 {[%clk 0:01:34.3]} 26. f5 {[%clk 0:02:19.4]}
26... Bd6+ {[%clk 0:01:31.5]} 27. Kh3 {[%clk 0:02:18.2]} 27... exf5 {[%clk
0:01:30.6]} 28. gxf5 {[%clk 0:02:18]} 28... Re7 {[%clk 0:01:23.6]} 29. fxg6+
{[%clk 0:02:06.6]} 29... fxg6 {[%clk 0:01:24]} 30. Rde1 {[%clk 0:02:06.3]} 30...
Rde8 {[%clk 0:01:24.5]} 31. Rxe7+ {[%clk 0:01:51.6]} 31... Rxe7 {[%clk
0:01:24.8]} 32. Rf6 {[%clk 0:01:42.9]} 32... Re3+ {[%clk 0:01:19.1]} 33. Kg2
{[%clk 0:01:34.1]} 33... Bf8 {[%clk 0:01:08.8]} 34. Rxf8 {[%clk 0:01:32.2]}
34... Re2+ {[%clk 0:01:09.3]} 35. Rf2 {[%clk 0:01:32.7]} 35... Re4 {[%clk
0:01:09.5]} 36. Kf3 {[%clk 0:01:29.5]} 36... Rxh4 {[%clk 0:01:10.1]} 37. c4
{[%clk 0:01:29.3]} 37... g5 {[%clk 0:01:09.2]} 38. d5 {[%clk 0:01:29.1]} 38...
Rf4+ {[%clk 0:01:09.4]} 39. Kg3 {[%clk 0:01:27]} 39... Re4 {[%clk 0:01:08.7]}
40. d6 {[%clk 0:01:21.5]} 40... Re8 {[%clk 0:01:06.9]} 41. Bf6 {[%clk
0:01:05.5]} 41... Re6 {[%clk 0:01:06.5]} 42. Be7 {[%clk 0:01:05.3]} 42... Re3+
{[%clk 0:01:04]} 43. Rf3 {[%clk 0:01:05.4]} 43... Re2 {[%clk 0:01:05.1]} 44. d7
{[%clk 0:01:01]} 44... h5 {[%clk 0:01:06.3]} 45. d8=Q {[%clk 0:00:53.7]} 45...
h4+ {[%clk 0:01:06.8]} 46. Kh3 {[%clk 0:00:51.2]} 46... Re5 {[%clk 0:00:50]} 47.
Rf7+ {[%clk 0:00:42.9]} 47... Kg6 {[%clk 0:00:45.2]} 48. Qg8+ {[%clk 0:00:43.5]}
48... Kh5 {[%clk 0:00:43.7]} 49. Rh7# {[%clk 0:00:43.6]} 1

[Event "Torneo Nuevo Centro. Jornada 8"]
[Site "Chess.com"]
[Date "2020.08.07"]
[Round "9"]
[White "Castellano López, Javier"]
[Black "Perez Garcia, Jose Miguel"]
[Result "0-1"]
[WhiteElo "1906"]
[BlackElo "2035"]
[TimeControl "180+2"]
[EndTime "12:13:25 PDT"]
[Termination "Victoria de PEREZOV69 por jaque mate"]

1. d4 {[%clk 0:03:01.9]} 1... c5 {[%clk 0:02:59.6]} 2. d5 {[%clk 0:03:02.2]}
2... d6 {[%clk 0:03:00.4]} 3. c4 {[%clk 0:03:03.3]} 3... e5 {[%clk 0:02:59.8]}
4. dxe6 {[%clk 0:03:01.1]} 4... Bxe6 {[%clk 0:02:57.2]} 5. e4 {[%clk 0:03:00]}
5... Nf6 {[%clk 0:02:57.2]} 6. Nc3 {[%clk 0:03:00]} 6... Nc6 {[%clk 0:02:56.3]}
7. Nf3 {[%clk 0:02:49.1]} 7... Bg4 {[%clk 0:02:54.1]} 8. Be2 {[%clk 0:02:46.3]}
8... Be7 {[%clk 0:02:51.9]} 9. O-O {[%clk 0:02:46]} 9... O-O {[%clk 0:02:50.5]}
10. b3 {[%clk 0:02:45.1]} 10... Re8 {[%clk 0:02:47.2]} 11. Bb2 {[%clk
0:02:34.3]} 11... Bf8 {[%clk 0:02:42]} 12. Qc2 {[%clk 0:02:26.3]} 12... Bxf3
{[%clk 0:02:37.1]} 13. Bxf3 {[%clk 0:02:25.3]} 13... Nd4 {[%clk 0:02:39]} 14.
Qd3 {[%clk 0:02:23.9]} 14... Nd7 {[%clk 0:02:37.6]} 15. Bd1 {[%clk 0:01:48.3]}
15... Ne5 {[%clk 0:02:34.5]} 16. Qg3 {[%clk 0:01:40.8]} 16... g6 {[%clk
0:02:28.3]} 17. Ne2 {[%clk 0:01:40.3]} 17... Nxe2+ {[%clk 0:02:22.8]} 18. Bxe2
{[%clk 0:01:42.2]} 18... Bg7 {[%clk 0:02:23.5]} 19. Rab1 {[%clk 0:01:28.7]}
19... Qe7 {[%clk 0:02:19.4]} 20. Rfd1 {[%clk 0:01:26.1]} 20... Rad8 {[%clk
0:02:19]} 21. f4 {[%clk 0:01:15.5]} 21... Nc6 {[%clk 0:02:19.3]} 22. Bf3 {[%clk
0:00:53.6]} 22... Bxb2 {[%clk 0:02:18.8]} 23. Rxb2 {[%clk 0:00:54.9]} 23... Nd4
{[%clk 0:02:20.5]} 24. a3 {[%clk 0:00:52.3]} 24... b6 {[%clk 0:02:21.1]} 25. Rd3
{[%clk 0:00:48.3]} 25... Qf6 {[%clk 0:02:19.8]} 26. Rbd2 {[%clk 0:00:33.7]}
26... Rd7 {[%clk 0:02:14.8]} 27. a4 {[%clk 0:00:22.9]} 27... Rde7 {[%clk
0:02:15.3]} 28. Re3 {[%clk 0:00:16.6]} 28... Kg7 {[%clk 0:02:15.8]} 29. Rd1
{[%clk 0:00:13.8]} 29... Nc2 {[%clk 0:02:15.6]} 30. Red3 {[%clk 0:00:10.7]}
30... Nd4 {[%clk 0:02:15.4]} 31. Re1 {[%clk 0:00:07.6]} 31... h5 {[%clk
0:02:14]} 32. Rde3 {[%clk 0:00:08.2]} 32... Nc2 {[%clk 0:02:00.5]} 33. e5 {[%clk
0:00:07.4]} 33... dxe5 {[%clk 0:01:52.8]} 34. fxe5 {[%clk 0:00:07.1]} 34... Qe6
{[%clk 0:01:44.5]} 35. Bd5 {[%clk 0:00:07.3]} 35... Qg4 {[%clk 0:01:42.5]} 36.
Qxg4 {[%clk 0:00:03.9]} 36... hxg4 {[%clk 0:01:42.9]} 37. R1e2 {[%clk
0:00:05.2]} 37... Nxe3 {[%clk 0:01:43.9]} 38. Rxe3 {[%clk 0:00:07.1]} 38... Rxe5
{[%clk 0:01:45]} 39. Rxe5 {[%clk 0:00:06.8]} 39... Rxe5 {[%clk 0:01:46.2]} 40.
Kf2 {[%clk 0:00:08.7]} 40... f5 {[%clk 0:01:47.3]} 41. g3 {[%clk 0:00:09.4]}
41... Kf6 {[%clk 0:01:49.2]} 42. Bb7 {[%clk 0:00:08.6]} 42... g5 {[%clk
0:01:49.6]} 43. Bd5 {[%clk 0:00:08.7]} 43... f4 {[%clk 0:01:50.2]} 44. gxf4
{[%clk 0:00:09.1]} 44... gxf4 {[%clk 0:01:50.3]} 45. Bb7 {[%clk 0:00:07.2]}
45... Kg5 {[%clk 0:01:50.9]} 46. Bd5 {[%clk 0:00:05.9]} 46... Kh4 {[%clk
0:01:50.7]} 47. Bg2 {[%clk 0:00:03.8]} 47... Re3 {[%clk 0:01:50.1]} 48. a5
{[%clk 0:00:04.5]} 48... Rxb3 {[%clk 0:01:50.4]} 49. axb6 {[%clk 0:00:05.1]}
49... axb6 {[%clk 0:01:52.3]} 50. Bd5 {[%clk 0:00:06.2]} 50... Rb2+ {[%clk
0:01:53]} 51. Kg1 {[%clk 0:00:07.5]} 51... g3 {[%clk 0:01:54]} 52. hxg3+ {[%clk
0:00:09.4]} 52... Kxg3 {[%clk 0:01:55.4]} 53. Kf1 {[%clk 0:00:09.2]} 53... f3
{[%clk 0:01:54.7]} 54. Ke1 {[%clk 0:00:06.4]} 54... f2+ {[%clk 0:01:55.1]} 55.
Kf1 {[%clk 0:00:06.7]} 55... Rb1+ {[%clk 0:01:55.9]} 56. Ke2 {[%clk 0:00:08.2]}
56... f1=Q+ {[%clk 0:01:56.5]} 57. Ke3 {[%clk 0:00:10.1]} 57... Re1+ {[%clk
0:01:57]} 58. Kd2 {[%clk 0:00:10.8]} 58... Qf2+ {[%clk 0:01:57.3]} 59. Kc3
{[%clk 0:00:12.2]} 59... Re3# {[%clk 0:01:58.2]} 0

[Event "Torneo Nuevo Centro. Jornada 8"]
[Site "Chess.com"]
[Date "2020.08.07"]
[Round "9"]
[White "Donate Peris, Jose Manuel"]
[Black "Conon, Catalin"]
[Result "0-1"]
[WhiteElo "1529"]
[BlackElo "1907"]
[TimeControl "180+2"]
[EndTime "12:13:31 PDT"]
[Termination "Victoria de CatalinConon por abandono"]

1. d4 {[%clk 0:03:01.9]} 1... Nf6 {[%clk 0:03:00.4]} 2. c4 {[%clk 0:03:01.7]}
2... e6 {[%clk 0:03:01]} 3. Nc3 {[%clk 0:03:02.5]} 3... d5 {[%clk 0:03:01.6]} 4.
cxd5 {[%clk 0:03:02.3]} 4... exd5 {[%clk 0:03:03.5]} 5. a3 {[%clk 0:03:01]} 5...
Be7 {[%clk 0:03:03.9]} 6. Nf3 {[%clk 0:03:01.4]} 6... O-O {[%clk 0:03:04.9]} 7.
e3 {[%clk 0:02:57.2]} 7... c6 {[%clk 0:03:06]} 8. Be2 {[%clk 0:02:56.3]} 8...
Bf5 {[%clk 0:03:06.4]} 9. O-O {[%clk 0:02:56.2]} 9... h6 {[%clk 0:03:06.3]} 10.
Bd2 {[%clk 0:02:53.1]} 10... Nbd7 {[%clk 0:03:05.8]} 11. Rc1 {[%clk 0:02:53.4]}
11... Rc8 {[%clk 0:03:05.3]} 12. b4 {[%clk 0:02:50.9]} 12... Ne4 {[%clk
0:03:05.5]} 13. Nxe4 {[%clk 0:02:49]} 13... Bxe4 {[%clk 0:03:07.4]} 14. Bc3
{[%clk 0:02:43.6]} 14... Bd6 {[%clk 0:03:04.4]} 15. Nd2 {[%clk 0:02:42.8]} 15...
Bh7 {[%clk 0:02:57.1]} 16. f4 {[%clk 0:02:35.1]} 16... Re8 {[%clk 0:02:57]} 17.
Rf3 {[%clk 0:02:33.6]} 17... Nf6 {[%clk 0:02:52]} 18. Nf1 {[%clk 0:02:26.9]}
18... Qd7 {[%clk 0:02:40.9]} 19. Bd3 {[%clk 0:02:26.4]} 19... Ne4 {[%clk
0:02:40]} 20. Bxe4 {[%clk 0:02:24.4]} 20... Bxe4 {[%clk 0:02:41.9]} 21. Rg3
{[%clk 0:02:23.8]} 21... Kh8 {[%clk 0:02:42.5]} 22. Nd2 {[%clk 0:02:23]} 22...
Re7 {[%clk 0:02:42.3]} 23. Nf3 {[%clk 0:02:22.3]} 23... Bxf3 {[%clk 0:02:43]}
24. Qxf3 {[%clk 0:02:21.5]} 24... Rce8 {[%clk 0:02:43.4]} 25. Re1 {[%clk
0:02:21]} 25... Qf5 {[%clk 0:02:41.9]} 26. Qd1 {[%clk 0:02:16.8]} 26... Qe4
{[%clk 0:02:30.1]} 27. Rf3 {[%clk 0:02:15.3]} 27... b6 {[%clk 0:01:51.4]} 28.
Kf2 {[%clk 0:02:14.1]} 28... f6 {[%clk 0:01:43.6]} 29. g4 {[%clk 0:02:04]} 29...
a6 {[%clk 0:01:22.9]} 30. h4 {[%clk 0:02:03.4]} 30... Bc7 {[%clk 0:01:04.1]} 31.
g5 {[%clk 0:02:03.9]} 31... fxg5 {[%clk 0:01:04.8]} 32. hxg5 {[%clk 0:02:03.8]}
32... hxg5 {[%clk 0:00:59]} 33. Rh3+ {[%clk 0:02:02.9]} 33... Kg8 {[%clk
0:00:55.9]} 34. Qh5 {[%clk 0:01:54.3]} 34... gxf4 {[%clk 0:00:50.9]} 35. Qh8+
{[%clk 0:01:51.9]} 35... Kf7 {[%clk 0:00:51.4]} 36. Qh5+ {[%clk 0:01:51.5]}
36... Qg6 {[%clk 0:00:51.2]} 37. Qh4 {[%clk 0:01:26.2]} 37... fxe3+ {[%clk
0:00:51.4]} 38. Rexe3 {[%clk 0:01:20.5]} 38... Rxe3 {[%clk 0:00:48.8]} 39. Rxe3
{[%clk 0:01:20.3]} 39... Rxe3 {[%clk 0:00:49.8]} 40. Kxe3 {[%clk 0:01:20.8]}
40... Qg3+ {[%clk 0:00:51.2]} 41. Qxg3 {[%clk 0:01:20.8]} 41... Bxg3 {[%clk
0:00:53.1]} 42. Kf3 {[%clk 0:01:18.9]} 42... Bd6 {[%clk 0:00:54.1]} 43. Kg4
{[%clk 0:01:16.9]} 43... Kf6 {[%clk 0:00:55.5]} 44. Bd2 {[%clk 0:01:13.7]} 44...
Bh2 {[%clk 0:00:54.2]} 45. Bg5+ {[%clk 0:01:13]} 45... Ke6 {[%clk 0:00:47.9]}
46. Bc1 {[%clk 0:01:09.3]} 46... Bg1 {[%clk 0:00:48.3]} 47. Bb2 {[%clk
0:01:09.6]} 47... Be3 {[%clk 0:00:47.8]} 48. Kf3 {[%clk 0:01:08.1]} 48... Bd2
{[%clk 0:00:48.7]} 49. Kg4 {[%clk 0:01:08.3]} 49... Kf6 {[%clk 0:00:47.4]} 50.
Kf3 {[%clk 0:01:02.3]} 50... Kf5 {[%clk 0:00:48.4]} 51. Ke2 {[%clk 0:01:02.2]}
51... Bf4 {[%clk 0:00:48.4]} 52. Kf3 {[%clk 0:01:02.7]} 52... g5 {[%clk
0:00:49.4]} 53. Bc3 {[%clk 0:01:00.6]} 53... g4+ {[%clk 0:00:47.4]} 54. Kf2
{[%clk 0:00:58.3]} 54... Ke4 {[%clk 0:00:48.4]} 0

[Event "Torneo Nuevo Centro. Jornada 8"]
[Site "Chess.com"]
[Date "2020.08.07"]
[Round "9"]
[White "Chofre Murcia, Adrián"]
[Black "Ainsa Jimenez, Lucas"]
[Result "1-0"]
[WhiteElo "1682"]
[BlackElo "1092"]
[TimeControl "180+2"]
[EndTime "12:13:36 PDT"]
[Termination "Victoria de Kelorian por tiempo"]

1. e4 {[%clk 0:03:01.9]} 1... e5 {[%clk 0:03:00.5]} 2. Nc3 {[%clk 0:03:02.7]}
2... Nc6 {[%clk 0:02:59.8]} 3. f4 {[%clk 0:03:02.5]} 3... exf4 {[%clk
0:02:59.3]} 4. Nf3 {[%clk 0:03:02.7]} 4... Nf6 {[%clk 0:02:55.6]} 5. d4 {[%clk
0:03:02.1]} 5... d5 {[%clk 0:02:35.2]} 6. e5 {[%clk 0:03:00.5]} 6... Nd7 {[%clk
0:02:26.3]} 7. Bb5 {[%clk 0:03:00.7]} 7... Bb4 {[%clk 0:02:22.7]} 8. O-O {[%clk
0:03:00.8]} 8... O-O {[%clk 0:02:19.2]} 9. Nxd5 {[%clk 0:02:59.9]} 9... Ba5
{[%clk 0:01:55.6]} 10. c3 {[%clk 0:02:53.4]} 10... a6 {[%clk 0:01:51.6]} 11.
Bxc6 {[%clk 0:02:52.9]} 11... bxc6 {[%clk 0:01:51.4]} 12. Nxf4 {[%clk
0:02:53.7]} 12... c5 {[%clk 0:01:42]} 13. Be3 {[%clk 0:02:52.2]} 13... cxd4
{[%clk 0:01:41.5]} 14. cxd4 {[%clk 0:02:50.9]} 14... Nb6 {[%clk 0:01:37.1]} 15.
a3 {[%clk 0:02:49.3]} 15... Nc4 {[%clk 0:01:27.3]} 16. Qe2 {[%clk 0:02:49.5]}
16... Nxe3 {[%clk 0:01:25.9]} 17. Qxe3 {[%clk 0:02:49.4]} 17... Bb6 {[%clk
0:01:17.6]} 18. Rac1 {[%clk 0:02:41.3]} 18... Bb7 {[%clk 0:01:14.6]} 19. Rfd1
{[%clk 0:02:36.7]} 19... Qe7 {[%clk 0:01:03.1]} 20. Kh1 {[%clk 0:02:22.7]} 20...
Rfd8 {[%clk 0:00:56.3]} 21. Qb3 {[%clk 0:02:21.7]} 21... Bxf3 {[%clk 0:00:39.3]}
22. Qxf3 {[%clk 0:02:21.1]} 22... Bxd4 {[%clk 0:00:38.1]} 23. Rxd4 {[%clk
0:02:14.4]} 23... Rxd4 {[%clk 0:00:33.3]} 24. Qxa8+ {[%clk 0:02:14.8]} 24... Qf8
{[%clk 0:00:31.5]} 25. Qxf8+ {[%clk 0:02:14.8]} 25... Kxf8 {[%clk 0:00:32]} 26.
g3 {[%clk 0:02:15.6]} 26... Re4 {[%clk 0:00:24.7]} 27. Rxc7 {[%clk 0:02:08.5]}
27... Rxe5 {[%clk 0:00:23.4]} 28. Ra7 {[%clk 0:02:06.8]} 28... Rb5 {[%clk
0:00:18.4]} 29. a4 {[%clk 0:02:01.5]} 29... Rxb2 {[%clk 0:00:14.4]} 30. Nd5
{[%clk 0:02:02.4]} 30... g6 {[%clk 0:00:08]} 31. Rxa6 {[%clk 0:02:00.7]} 31...
Kg7 {[%clk 0:00:07.2]} 32. Rb6 {[%clk 0:01:56.7]} 32... Ra2 {[%clk 0:00:05]} 33.
Rb4 {[%clk 0:01:55.6]} 33... Ra1+ {[%clk 0:00:03.2]} 34. Kg2 {[%clk 0:01:56.1]}
34... Rd1 {[%clk 0:00:05.1]} 35. Rb5 {[%clk 0:01:54.5]} 35... Rd2+ {[%clk
0:00:05.3]} 36. Kf3 {[%clk 0:01:54.3]} 36... Rd4 {[%clk 0:00:05.4]} 37. a5
{[%clk 0:01:50.4]} 37... Ra4 {[%clk 0:00:07.1]} 38. Nb6 {[%clk 0:01:46.6]} 38...
Ra3+ {[%clk 0:00:06.4]} 39. Kg2 {[%clk 0:01:46.8]} 39... Ra2+ {[%clk 0:00:06.9]}
40. Kh3 {[%clk 0:01:47]} 40... Kh6 {[%clk 0:00:04.9]} 41. Nc4 {[%clk 0:01:46.1]}
41... f5 {[%clk 0:00:04.1]} 42. Rb6 {[%clk 0:01:34.9]} 42... Kh5 {[%clk
0:00:02.7]} 43. a6 {[%clk 0:01:31.4]} 43... g5 {[%clk 0:00:01.6]} 44. g4+ {[%clk
0:01:14.1]} 1

[Event "Torneo Nuevo Centro. Jornada 8"]
[Site "Chess.com"]
[Date "2020.08.07"]
[Round "9"]
[White "Casado Andreu, David"]
[Black "Fente Fernandez, Jose Ignacio"]
[Result "1/2-1/2"]
[WhiteElo "1746"]
[BlackElo "1466"]
[TimeControl "180+2"]
[EndTime "12:13:58 PDT"]
[Termination "Tablas por rey ahogado"]

1. e4 {[%clk 0:03:01.9]} 1... e5 {[%clk 0:03:00.6]} 2. Nf3 {[%clk 0:03:02.7]}
2... Nc6 {[%clk 0:03:01.3]} 3. Bc4 {[%clk 0:03:03.6]} 3... Bc5 {[%clk
0:03:00.2]} 4. c3 {[%clk 0:03:04.4]} 4... Nf6 {[%clk 0:02:59]} 5. d3 {[%clk
0:03:05.1]} 5... O-O {[%clk 0:02:59.4]} 6. Bb3 {[%clk 0:03:06.4]} 6... d6 {[%clk
0:03:00.2]} 7. Nbd2 {[%clk 0:03:07.4]} 7... Be6 {[%clk 0:03:00.9]} 8. Bc2 {[%clk
0:03:07.8]} 8... Ne7 {[%clk 0:02:58.6]} 9. h3 {[%clk 0:03:03]} 9... Ng6 {[%clk
0:02:56]} 10. Nf1 {[%clk 0:03:04.1]} 10... h6 {[%clk 0:02:23.3]} 11. Ng3 {[%clk
0:03:03.4]} 11... Nf4 {[%clk 0:02:11.7]} 12. O-O {[%clk 0:03:04.2]} 12... Qd7
{[%clk 0:02:07.6]} 13. d4 {[%clk 0:02:53.5]} 13... exd4 {[%clk 0:02:06.4]} 14.
cxd4 {[%clk 0:02:55.1]} 14... Bb6 {[%clk 0:02:02.7]} 15. Bxf4 {[%clk 0:02:51.7]}
15... g5 {[%clk 0:01:49.9]} 16. Be3 {[%clk 0:02:42.3]} 16... d5 {[%clk
0:01:33.8]} 17. e5 {[%clk 0:02:40.3]} 17... Nh7 {[%clk 0:01:21.7]} 18. Qd3
{[%clk 0:02:33.9]} 18... f5 {[%clk 0:01:15.9]} 19. exf6 {[%clk 0:02:34.9]} 19...
Rxf6 {[%clk 0:01:13.1]} 20. Ne5 {[%clk 0:02:29.7]} 20... Qe7 {[%clk 0:00:56.4]}
21. Nh5 {[%clk 0:02:29.4]} 21... Rff8 {[%clk 0:00:43.2]} 22. Ng6 {[%clk
0:02:25.1]} 22... Qf7 {[%clk 0:00:32]} 23. Nxf8 {[%clk 0:02:25.2]} 23... Rxf8
{[%clk 0:00:26.6]} 24. f4 {[%clk 0:02:21.4]} 24... Bf5 {[%clk 0:00:25.8]} 25.
Qe2 {[%clk 0:02:19.4]} 25... Bxc2 {[%clk 0:00:23]} 26. fxg5 {[%clk 0:02:17.2]}
26... Qg6 {[%clk 0:00:20.7]} 27. Rxf8+ {[%clk 0:02:13.8]} 27... Nxf8 {[%clk
0:00:22.6]} 28. Nf6+ {[%clk 0:02:12.7]} 28... Kg7 {[%clk 0:00:21.5]} 29. Rf1
{[%clk 0:02:06.8]} 29... hxg5 {[%clk 0:00:20.7]} 30. Qg4 {[%clk 0:01:57.8]}
30... Bf5 {[%clk 0:00:19]} 31. Nh5+ {[%clk 0:01:56.7]} 31... Kh8 {[%clk
0:00:18.1]} 32. Qxg5 {[%clk 0:01:55.1]} 32... Qxg5 {[%clk 0:00:16.7]} 33. Bxg5
{[%clk 0:01:57]} 33... Bxd4+ {[%clk 0:00:17.4]} 34. Kh2 {[%clk 0:01:57.3]} 34...
Bg6 {[%clk 0:00:16]} 35. Rxf8+ {[%clk 0:01:53.9]} 35... Kh7 {[%clk 0:00:14.2]}
36. Nf6+ {[%clk 0:01:54.8]} 36... Kg7 {[%clk 0:00:14.6]} 37. Rg8+ {[%clk
0:01:51.2]} 37... Kf7 {[%clk 0:00:14.2]} 38. Rc8 {[%clk 0:01:42.8]} 38... Bxf6
{[%clk 0:00:14.4]} 39. Bxf6 {[%clk 0:01:43.8]} 39... Kxf6 {[%clk 0:00:16]} 40.
Rxc7 {[%clk 0:01:45.1]} 40... Ke5 {[%clk 0:00:16.1]} 41. Rxb7 {[%clk 0:01:45.7]}
41... d4 {[%clk 0:00:17.2]} 42. Re7+ {[%clk 0:01:44.7]} 42... Kf4 {[%clk
0:00:17.4]} 43. g3+ {[%clk 0:01:44.3]} 43... Kf3 {[%clk 0:00:15.9]} 44. Re1
{[%clk 0:01:36.2]} 44... d3 {[%clk 0:00:15.6]} 45. Rd1 {[%clk 0:01:35.5]} 45...
Ke2 {[%clk 0:00:16.3]} 46. Rg1 {[%clk 0:01:31.8]} 46... d2 {[%clk 0:00:14.9]}
47. h4 {[%clk 0:01:32.2]} 47... d1=Q {[%clk 0:00:14.2]} 48. Rxd1 {[%clk
0:01:33.4]} 48... Kxd1 {[%clk 0:00:15.1]} 49. a3 {[%clk 0:01:25.7]} 49... Ke2
{[%clk 0:00:11.6]} 50. b4 {[%clk 0:01:26.7]} 50... Ke3 {[%clk 0:00:11.6]} 51. g4
{[%clk 0:01:25.2]} 51... Kd4 {[%clk 0:00:05.4]} 52. Kg3 {[%clk 0:01:25]} 52...
Kc3 {[%clk 0:00:06]} 53. h5 {[%clk 0:01:20.6]} 53... Bh7 {[%clk 0:00:06.7]} 54.
g5 {[%clk 0:01:21.2]} 54... Kb3 {[%clk 0:00:06.8]} 55. g6 {[%clk 0:01:22.7]}
55... Bg8 {[%clk 0:00:05.6]} 56. h6 {[%clk 0:01:24]} 56... Kxa3 {[%clk
0:00:04.6]} 57. h7 {[%clk 0:01:25.4]} 57... Kxb4 {[%clk 0:00:03.3]} 58. hxg8=Q
{[%clk 0:01:26.1]} 58... a5 {[%clk 0:00:05.2]} 59. Qb8+ {[%clk 0:01:25.4]} 59...
Ka4 {[%clk 0:00:05.2]} 60. Qb2 {[%clk 0:01:25.3]} 1/2-1